fUST/lending_fUST_20240721
["ID","MTS","AMOUNT","RATE_DAILY","PERIOD"]
[332807149,1721538648393,-500.0,0.00013698,2]
[332807150,1721538648403,-527.46022515,0.00013698,2]
[332807151,1721538648413,-7203.23,0.00013698,2]
[332807152,1721538648423,-1511.37,0.00013698,2]
[332807153,1721538648434,-698.08,0.00013698,2]
[332807154,1721538648445,-3923.85,0.00013698,2]
[332807155,1721538648455,-500.0,0.00013698,2]
[332807156,1721538648466,-500.0,0.00013698,2]
[332807157,1721538648477,-654.93,0.00013698,2]
[332807158,1721538648488,-501.09062713,0.00013698,2]
[332807159,1721538648498,-500.0,0.00013698,2]
[332807160,1721538648508,-500.0,0.00013698,2]
[332807161,1721538648519,-1681.39,0.00013698,2]
[332807162,1721538648529,-500.0,0.00013698,2]
[332807163,1721538648540,-500.0,0.00013698,2]
[332807165,1721538648554,-500.0,0.00013698,2]
[332807167,1721538648565,-657.63,0.00013698,2]
[332807169,1721538648576,-8280.88,0.00013698,2]
[332807170,1721538648587,-4153.2,0.00013698,2]
[332807171,1721538648597,-500.0,0.00013698,2]
[332807172,1721538648607,-506.44277005,0.00013698,2]
[332807173,1721538648618,-500.0,0.00013698,2]
[332807174,1721538648629,-500.0,0.00013698,2]
[332807175,1721538648639,-500.0,0.00013698,2]
[332807176,1721538648649,-500.0,0.00013698,2]
[332807177,1721538648660,-500.0,0.00013698,2]
[332807178,1721538648671,-513.04389013,0.00013698,2]
[332807179,1721538648681,-500.0,0.00013698,2]
[332807180,1721538648691,-502.17138118,0.00013698,2]
[332807181,1721538648701,-1644.17,0.00013698,2]
[332807182,1721538648711,-500.0,0.00013698,2]
[332807183,1721538648722,-1041.28,0.00013698,2]
[332807184,1721538648733,-500.0,0.00013698,2]
[332807185,1721538648743,-500.0,0.00013698,2]
[332807186,1721538648754,-660.62,0.00013698,2]
[332807187,1721538648765,-484.726254,0.00013699,2]
[332807188,1721538648775,-151.0,0.00013699,2]
[332807189,1721538648786,-3000.0,0.00013699,2]
[332807190,1721538648796,-151.62433448,0.00013732,2]
[332807191,1721538648806,-1122.53091537,0.00013735,2]
[332807192,1721538648817,-367.35615468,0.00013739,2]
[332807193,1721538648826,-155.0,0.0001377,2]
[332807194,1721538648836,-1413.604,0.00013782,2]
[332807195,1721538648846,-1122.53091537,0.00013804,2]
[332807196,1721538648857,-1122.53091537,0.00013872,2]
[332807197,1721538648867,-5304.19710114,0.00013878,2]
[332807198,1721538648877,-212.095,0.0001391,2]
[332807199,1721538648887,-150.657,0.0001391,2]
[332807200,1721538648900,-505.0,0.0001391,2]
[332807201,1721538648910,-1619.46,0.00013948,2]
[332807203,1721538648924,-771.67106399,0.00013961,2]
[332807204,1721538648934,-151.0,0.00013962,2]
[332807205,1721538648944,-5401.69744793,0.00013962,2]
[332807206,1721538648955,-500.0,0.00013971,2]
[332807207,1721538648965,-500.0,0.00013971,2]
[332807208,1721538648976,-500.0,0.00013971,2]
[332807209,1721538648986,-500.0,0.00013971,2]
[332807210,1721538648997,-500.0,0.00013971,2]
[332807211,1721538649007,-500.0,0.00013971,2]
[332807212,1721538649018,-624.728192,0.00013971,2]
[332807213,1721538649028,-500.0,0.00013971,2]
[332807214,1721538649039,-500.0,0.00013971,2]
[332807215,1721538649049,-500.0,0.00013971,2]
[332807216,1721538649059,-500.0,0.00013971,2]
[332807217,1721538649070,-500.0,0.00013971,2]
[332807218,1721538649080,-500.0,0.00013971,2]
[332807219,1721538649091,-500.0,0.00013971,2]
[332807220,1721538649103,-500.0,0.00013971,2]
[332807221,1721538649115,-500.0,0.00013971,2]
[332807222,1721538649125,-500.0,0.00013971,2]
[332807223,1721538649135,-549.25474034,0.00013971,2]
[332807224,1721538649146,-151.0,0.00013971,2]
[332807225,1721538649156,-267.043893,0.00013971,2]
[332807226,1721538649166,-500.0,0.00013971,2]
[332807227,1721538649176,-500.0,0.00013971,2]
[332807228,1721538649187,-500.0,0.00013971,2]
[332807229,1721538649197,-500.0,0.00013971,2]
[332807230,1721538649208,-500.0,0.00013971,2]
[332807231,1721538649218,-500.0,0.00013971,2]
[332807232,1721538649229,-500.0,0.00013971,2]
[332807233,1721538649240,-500.0,0.00013971,2]
[332807234,1721538649251,-500.0,0.00013971,2]
[332807235,1721538649262,-500.0,0.00013971,2]
[332807236,1721538649273,-500.0,0.00013971,2]
[332807237,1721538649283,-500.0,0.00013971,2]
[332807238,1721538649294,-473.39537571,0.00013971,2]
[332807239,1721538649305,-500.0,0.00013971,2]
[332807240,1721538649316,-500.0,0.00013971,2]
[332807241,1721538649327,-500.0,0.00013971,2]
[332807242,1721538649339,-500.0,0.00013971,2]
[332807243,1721538649350,-272.43551272,0.00013971,2]
[332807244,1721538649360,-1619.46,0.00013971,2]
[332807245,1721538649371,-1619.46,0.00013971,2]
[332807246,1721538649383,-1619.46,0.00013971,2]
[332807247,1721538649394,-1619.46,0.00013971,2]
[332807248,1721538649405,-1619.46,0.00013971,2]
[332807249,1721538649415,-1619.46,0.00013971,2]
[332807250,1721538649426,-1619.46,0.00013971,2]
[332807251,1721538649437,-1619.46,0.00013971,2]
[332807252,1721538649447,-1619.46,0.00013971,2]
[332807253,1721538649457,-1619.65092737,0.00013971,2]
[332807254,1721538649468,-29568.53027479,0.00013972,5]
[332807255,1721538649478,-379.2318798,0.00013972,2]
[332807256,1721538649489,-500.0,0.00013972,2]
[332807257,1721538649501,-500.0,0.00013972,2]
[332807258,1721538649511,-500.0,0.00013972,2]
[332807259,1721538649522,-500.0,0.00013972,2]
[332807260,1721538649533,-2337.45,0.00013972,2]
[332807261,1721538649543,-500.0,0.00013972,2]
[332807262,1721538649555,-892.3,0.00013972,2]
[332807263,1721538649566,-500.0,0.00013972,2]
[332807264,1721538649575,-500.0,0.00013972,2]
[332807265,1721538649585,-500.0,0.00013972,2]
[332807266,1721538649596,-500.0,0.00013972,2]
[332807267,1721538649607,-500.0,0.00013972,2]
[332807268,1721538649618,-438.00650596,0.00013972,2]
[332807269,1721538649630,-500.0,0.00013972,2]
[332807270,1721538649641,-537.06029466,0.00013972,2]
[332807271,1721538649653,-500.0,0.00013972,2]
[332807272,1721538649664,-177.82958708,0.00013972,2]
[332807273,1721538649675,-500.0,0.00013972,2]
[332807274,1721538649686,-598.19,0.00013972,2]
[332807275,1721538649699,-500.0,0.00013972,2]
[332807276,1721538649709,-500.0,0.00013972,2]
[332807279,1721538649911,-500.0,0.00013972,2]
[332807280,1721538649925,-500.0,0.00013972,2]
[332807282,1721538649936,-504.46428852,0.00013972,2]
[332807284,1721538649946,-573.50308911,0.00013972,2]
[332807285,1721538649955,-500.0,0.00013972,2]
[332807287,1721538649966,-500.0,0.00013972,2]
[332807288,1721538649976,-500.0,0.00013972,2]
[332807289,1721538649987,-500.0,0.00013972,2]
[332807290,1721538649996,-535.12,0.00013972,2]
[332807291,1721538650006,-1073.43,0.00013972,2]
[332807292,1721538650017,-500.0,0.00013972,2]
[332807293,1721538650027,-500.0,0.00013972,2]
[332807294,1721538650040,-500.0,0.00013972,2]
[332807295,1721538650050,-500.0,0.00013972,2]
[332807296,1721538650059,-588.1,0.00013972,2]
[332807297,1721538650069,-500.0,0.00013972,2]
[332807298,1721538650078,-500.0,0.00013972,2]
[332807299,1721538650089,-517.40359857,0.00013972,2]
[332807300,1721538650099,-500.0,0.00013972,2]
[332807301,1721538650112,-688.56,0.00013972,2]
[332807302,1721538650122,-500.0,0.00013972,2]
[332807303,1721538650132,-605.38,0.00013972,2]
[332807304,1721538650141,-500.0,0.00013972,2]
[332807305,1721538650150,-500.0,0.00013972,2]
[332807306,1721538650159,-502.02012757,0.00013972,2]
[332807307,1721538650168,-1353.0,0.00013972,2]
[332807308,1721538650178,-605.18,0.00013972,2]
[332807309,1721538650188,-1686.5,0.00013972,2]
[332807310,1721538650198,-603.44,0.00013972,2]
[332807311,1721538650207,-500.0,0.00013972,2]
[332807312,1721538650216,-500.0,0.00013972,2]
[332807313,1721538650226,-858.14,0.00013972,2]
[332807314,1721538650236,-500.0,0.00013972,2]
[332807315,1721538650246,-500.0,0.00013972,2]
[332807316,1721538650255,-503.71144622,0.00013972,2]
[332807317,1721538650264,-189.30105114,0.00013972,2]
[332807318,1721538650274,-500.0,0.00013972,2]
[332807319,1721538650283,-500.0,0.00013972,2]
[332807320,1721538650292,-500.0,0.00013972,2]
[332807321,1721538650301,-417.13444224,0.00013972,2]
[332807322,1721538650310,-846.94,0.00013972,2]
[332807323,1721538650319,-500.0,0.00013972,2]
[332807324,1721538650328,-500.0,0.00013972,2]
[332807325,1721538650338,-500.0,0.00013972,2]
[332807326,1721538650347,-500.0,0.00013972,2]
[332807327,1721538650357,-151.0,0.00013972,2]
[332807328,1721538650366,-151.0,0.00013972,2]
[332807329,1721538650375,-151.0,0.00013972,2]
[332807330,1721538650384,-500.0,0.00013972,2]
[332807331,1721538650395,-500.0,0.00013972,2]
[332807332,1721538650404,-500.0,0.00013972,2]
[332807333,1721538650413,-500.0,0.00013972,2]
[332807334,1721538650422,-503.15214971,0.00013972,2]
[332807335,1721538650432,-500.0,0.00013972,2]
[332807336,1721538650441,-308.20979279,0.00013972,2]
[332807337,1721538650451,-500.0,0.00013972,2]
[332807338,1721538650461,-595.28,0.00013972,2]
[332807339,1721538650470,-500.0,0.00013972,2]
[332807340,1721538650479,-861.29,0.00013972,2]
[332807341,1721538650488,-869.65,0.00013972,2]
[332807342,1721538650498,-494.30675282,0.00013972,2]
[332807343,1721538650507,-1411.54,0.00013972,2]
[332807344,1721538650516,-500.0,0.00013972,2]
[332807345,1721538650528,-500.0,0.00013972,2]
[332807346,1721538650538,-500.0,0.00013972,2]
[332807347,1721538650547,-500.0,0.00013972,2]
[332807348,1721538650556,-2593.43,0.00013972,2]
[332807349,1721538650567,-500.0,0.00013972,2]
[332807350,1721538650577,-744.63,0.00013972,2]
[332807351,1721538650587,-735.22,0.00013972,2]
[332807352,1721538650596,-738.56,0.00013972,2]
[332807353,1721538650606,-2637.9,0.00013972,2]
[332807354,1721538650615,-500.0,0.00013972,2]
[332807355,1721538650624,-949.06,0.00013972,2]
[332807356,1721538650633,-851.27,0.00013972,2]
[332807357,1721538650644,-500.0,0.00013972,2]
[332807358,1721538650654,-806.1,0.00013972,2]
[332807359,1721538650664,-500.0,0.00013972,2]
[332807360,1721538650673,-741.1,0.00013972,2]
[332807361,1721538650683,-565.48950967,0.00013972,2]
[332807362,1721538650692,-758.96,0.00013972,2]
[332807363,1721538650702,-500.0,0.00013972,2]
[332807364,1721538650712,-500.0,0.00013972,2]
[332807365,1721538650722,-1098.61,0.00013972,2]
[332807366,1721538650731,-500.0,0.00013972,2]
[332807367,1721538650741,-502.11194935,0.00013972,2]
[332807368,1721538650750,-605.69,0.00013972,2]
[332807369,1721538650759,-500.0,0.00013972,2]
[332807370,1721538650769,-500.0,0.00013972,2]
[332807371,1721538650778,-617.71,0.00013972,2]
[332807372,1721538650787,-500.0,0.00013972,2]
[332807373,1721538650797,-622.97,0.00013972,2]
[332807374,1721538650806,-2056.1,0.00013972,2]
[332807375,1721538650814,-1063.01,0.00013972,2]
[332807376,1721538650823,-547.59,0.00013972,2]
[332807377,1721538650832,-500.0,0.00013972,2]
[332807378,1721538650841,-500.0,0.00013972,2]
[332807379,1721538650850,-500.0,0.00013972,2]
[332807380,1721538650859,-500.0,0.00013972,2]
[332807381,1721538650868,-166.55481236,0.00013972,2]
[332807382,1721538650878,-500.0,0.00013972,2]
[332807383,1721538650887,-533.14,0.00013972,2]
[332807384,1721538650897,-500.0,0.00013972,2]
[332807385,1721538650907,-500.0,0.00013972,2]
[332807386,1721538650916,-500.0,0.00013972,2]
[332807387,1721538650925,-523.66,0.00013972,2]
[332807388,1721538650934,-556.72,0.00013972,2]
[332807389,1721538650944,-4000.91,0.00013972,2]
[332807390,1721538650953,-500.0,0.00013972,2]
[332807391,1721538650963,-500.0,0.00013972,2]
[332807392,1721538650972,-500.0,0.00013972,2]
[332807393,1721538650981,-1486.09,0.00013972,2]
[332807394,1721538650991,-500.0,0.00013972,2]
[332807395,1721538651000,-500.0,0.00013972,2]
[332807396,1721538651009,-1191.93,0.00013972,2]
[332807397,1721538651018,-519.39971363,0.00013972,2]
[332807398,1721538651027,-500.0,0.00013972,2]
[332807399,1721538651037,-500.0,0.00013972,2]
[332807400,1721538651047,-500.0,0.00013972,2]
[332807401,1721538651056,-500.0,0.00013972,2]
[332807402,1721538651065,-564.09,0.00013972,2]
[332807403,1721538651075,-500.0,0.00013972,2]
[332807404,1721538651084,-500.0,0.00013972,2]
[332807405,1721538651095,-1755.58,0.00013972,2]
[332807406,1721538651108,-500.0,0.00013972,2]
[332807407,1721538651119,-512.82091932,0.00013972,2]
[332807408,1721538651128,-831.67,0.00013972,2]
[332807409,1721538651138,-500.0,0.00013972,2]
[332807410,1721538651148,-500.0,0.00013972,2]
[332807411,1721538651158,-500.0,0.00013972,2]
[332807412,1721538651167,-500.0,0.00013972,2]
[332807413,1721538651177,-500.0,0.00013972,2]
[332807414,1721538651187,-1811.52,0.00013972,2]
[332807415,1721538651196,-500.0,0.00013972,2]
[332807416,1721538651206,-500.0,0.00013972,2]
[332807417,1721538651216,-508.57805667,0.00013972,2]
[332807418,1721538651226,-578.55,0.00013972,2]
[332807419,1721538651235,-500.0,0.00013972,2]
[332807420,1721538651244,-500.0,0.00013972,2]
[332807421,1721538651253,-500.0,0.00013972,2]
[332807422,1721538651262,-500.0,0.00013972,2]
[332807423,1721538651272,-614.64,0.00013972,2]
[332807424,1721538651281,-573.74,0.00013972,2]
[332807425,1721538651291,-500.0,0.00013972,2]
[332807426,1721538651301,-789.16,0.00013972,2]
[332807427,1721538651311,-500.0,0.00013972,2]
[332807428,1721538651322,-500.0,0.00013972,2]
[332807429,1721538651332,-500.0,0.00013972,2]
[332807430,1721538651342,-500.0,0.00013972,2]
[332807431,1721538651351,-500.0,0.00013972,2]
[332807432,1721538651363,-500.0,0.00013972,2]
[332807433,1721538651374,-151.0,0.00013972,2]
[332807434,1721538651384,-151.0,0.00013972,2]
[332807435,1721538651395,-500.0,0.00013972,2]
[332807436,1721538651404,-151.0,0.00013972,2]
[332807437,1721538651413,-1223.88,0.00013972,2]
[332807438,1721538651423,-850.42,0.00013972,2]
[332807439,1721538651433,-500.0,0.00013972,2]
[332807440,1721538651445,-500.0,0.00013972,2]
[332807441,1721538651455,-500.0,0.00013972,2]
[332807442,1721538651466,-2621.65,0.00013972,2]
[332807443,1721538651475,-543.79927098,0.00013972,2]
[332807444,1721538651486,-500.0,0.00013972,2]
[332807445,1721538651495,-502.24,0.00013972,2]
[332807446,1721538651505,-500.0,0.00013972,2]
[332807447,1721538651514,-1693.08,0.00013972,2]
[332807448,1721538651524,-500.0,0.00013972,2]
[332807449,1721538651535,-500.0,0.00013972,2]
[332807450,1721538651545,-500.0,0.00013972,2]
[332807451,1721538651554,-500.0,0.00013972,2]
[332807452,1721538651564,-500.0,0.00013972,2]
[332807453,1721538651573,-500.0,0.00013972,2]
[332807454,1721538651582,-500.0,0.00013972,2]
[332807455,1721538651592,-668.01,0.00013972,2]
[332807456,1721538651602,-500.0,0.00013972,2]
[332807457,1721538651611,-500.0,0.00013972,2]
[332807458,1721538651620,-500.0,0.00013972,2]
[332807459,1721538651630,-503.73580191,0.00013972,2]
[332807460,1721538651639,-500.0,0.00013972,2]
[332807461,1721538651649,-500.0,0.00013972,2]
[332807462,1721538651658,-500.0,0.00013972,2]
[332807463,1721538651667,-500.0,0.00013972,2]
[332807464,1721538651676,-746.29,0.00013972,2]
[332807465,1721538651686,-524.72,0.00013972,2]
[332807466,1721538651696,-500.0,0.00013972,2]
[332807467,1721538651705,-500.0,0.00013972,2]
[332807468,1721538651714,-1714.81,0.00013972,2]
[332807469,1721538651723,-500.0,0.00013972,2]
[332807470,1721538651732,-362.07545012,0.00013972,2]
[332807471,1721538651741,-1962.59,0.00013972,2]
[332807472,1721538651750,-500.0,0.00013972,2]
[332807473,1721538651759,-844.25,0.00013972,2]
[332807474,1721538651768,-500.0,0.00013972,2]
[332807475,1721538651777,-500.0,0.00013972,2]
[332807476,1721538651786,-1976.44,0.00013972,2]
[332807477,1721538651795,-500.0,0.00013972,2]
[332807478,1721538651805,-3609.17,0.00013972,2]
[332807479,1721538651814,-500.0,0.00013972,2]
[332807480,1721538651823,-500.0,0.00013972,2]
[332807481,1721538651832,-1247.71,0.00013972,2]
[332807482,1721538651843,-500.0,0.00013972,2]
[332807483,1721538651852,-574.15,0.00013972,2]
[332807484,1721538651861,-525.67,0.00013972,2]
[332807485,1721538651871,-606.59,0.00013972,2]
[332807486,1721538651880,-1554.0,0.00013972,2]
[332807487,1721538651889,-500.0,0.00013972,2]
[332807488,1721538651899,-1624.67,0.00013972,2]
[332807489,1721538651908,-738.99,0.00013972,2]
[332807490,1721538651917,-763.95,0.00013972,2]
[332807491,1721538651927,-500.0,0.00013972,2]
[332807492,1721538651936,-175.382872,0.00013972,2]
[332807493,1721538651946,-837.58,0.00013972,2]
[332807494,1721538651955,-1097.27,0.00013972,2]
[332807495,1721538651964,-505.21996878,0.00013972,2]
[332807496,1721538651973,-915.6,0.00013972,2]
[332807497,1721538651982,-500.0,0.00013972,2]
[332807498,1721538651992,-500.0,0.00013972,2]
[332807499,1721538652001,-500.0,0.00013972,2]
[332807500,1721538652010,-989.42,0.00013972,2]
[332807501,1721538652019,-580.74,0.00013972,2]
[332807502,1721538652028,-1809.04,0.00013972,2]
[332807503,1721538652037,-500.0,0.00013972,2]
[332807504,1721538652046,-500.0,0.00013972,2]
[332807505,1721538652056,-500.0,0.00013972,2]
[332807506,1721538652065,-500.0,0.00013972,2]
[332807507,1721538652074,-544.25,0.00013972,2]
[332807508,1721538652084,-500.0,0.00013972,2]
[332807509,1721538652093,-500.0,0.00013972,2]
[332807510,1721538652102,-500.0,0.00013972,2]
[332807511,1721538652111,-500.0,0.00013972,2]
[332807512,1721538652121,-500.0,0.00013972,2]
[332807513,1721538652130,-628.06,0.00013972,2]
[332807514,1721538652139,-500.0,0.00013972,2]
[332807515,1721538652150,-512.099942,0.00013972,2]
[332807516,1721538652159,-512.099942,0.00013972,2]
[332807517,1721538652170,-512.099942,0.00013972,2]
[332807518,1721538652179,-500.0,0.00013972,2]
[332807519,1721538652188,-1125.95,0.00013972,2]
[332807520,1721538652198,-500.0,0.00013972,2]
[332807521,1721538652207,-2570.26,0.00013972,2]
[332807522,1721538652216,-500.0,0.00013972,2]
[332807523,1721538652225,-512.099942,0.00013972,2]
[332807524,1721538652235,-512.099942,0.00013972,2]
[332807525,1721538652244,-171.40599026,0.00013972,2]
[332807526,1721538652253,-512.099942,0.00013972,2]
[332807527,1721538652262,-500.0,0.00013972,2]
[332807528,1721538652271,-500.0,0.00013972,2]
[332807529,1721538652281,-500.0,0.00013972,2]
[332807530,1721538652290,-500.0,0.00013972,2]
[332807531,1721538652299,-502.54817134,0.00013972,2]
[332807532,1721538652309,-1836.33,0.00013972,2]
[332807533,1721538652318,-2282.34,0.00013972,2]
[332807534,1721538652327,-1895.26,0.00013972,2]
[332807535,1721538652336,-500.0,0.00013972,2]
[332807536,1721538652346,-501.95006325,0.00013972,2]
[332807537,1721538652355,-500.0,0.00013972,2]
[332807538,1721538652364,-166.46989288,0.00013972,2]
[332807539,1721538652373,-500.0,0.00013972,2]
[332807540,1721538652383,-1055.7,0.00013972,2]
[332807541,1721538652394,-553.17107908,0.00013972,2]
[332807542,1721538652405,-500.0,0.00013972,2]
[332807543,1721538652414,-500.0,0.00013972,2]
[332807544,1721538652424,-500.0,0.00013972,2]
[332807545,1721538652434,-500.0,0.00013972,2]
[332807546,1721538652443,-500.0,0.00013972,2]
[332807547,1721538652453,-500.0,0.00013972,2]
[332807548,1721538652462,-672.79,0.00013972,2]
[332807549,1721538652471,-512.34617721,0.00013972,2]
[332807550,1721538652480,-1988.62,0.00013972,2]
[332807551,1721538652490,-500.0,0.00013972,2]
[332807552,1721538652499,-633.18,0.00013972,2]
[332807553,1721538652509,-534.93,0.00013972,2]
[332807554,1721538652518,-780.96,0.00013972,2]
[332807555,1721538652527,-574.71,0.00013972,2]
[332807556,1721538652536,-548.43,0.00013972,2]
[332807557,1721538652546,-502.40678066,0.00013972,2]
[332807558,1721538652555,-500.0,0.00013972,2]
[332807559,1721538652565,-1221.06,0.00013972,2]
[332807560,1721538652574,-7539.47,0.00013972,2]
[332807561,1721538652583,-500.0,0.00013972,2]
[332807562,1721538652593,-353.74643827,0.00013972,2]
[332807563,1721538652602,-764.43,0.00013972,2]
[332807564,1721538652612,-344.22504912,0.00013972,2]
[332807565,1721538652621,-548.9,0.00013972,2]
[332807566,1721538652631,-500.0,0.00013972,2]
[332807567,1721538652641,-836.06,0.00013972,2]
[332807568,1721538652650,-1370.58,0.00013972,2]
[332807569,1721538652659,-500.0,0.00013972,2]
[332807570,1721538652668,-2495.28,0.00013972,2]
[332807571,1721538652678,-522.52174364,0.00013972,2]
[332807572,1721538652686,-500.0,0.00013972,2]
[332807573,1721538652696,-500.0,0.00013972,2]
[332807574,1721538652705,-5625.7,0.00013972,2]
[332807575,1721538652714,-595.3,0.00013972,2]
[332807576,1721538652723,-2765.09,0.00013972,2]
[332807577,1721538652732,-500.0,0.00013972,2]
[332807578,1721538652742,-1714.2,0.00013972,2]
[332807579,1721538652751,-500.0,0.00013972,2]
[332807580,1721538652761,-500.0,0.00013972,2]
[332807581,1721538652770,-500.0,0.00013972,2]
[332807582,1721538652779,-1407.54,0.00013972,2]
[332807583,1721538652788,-7508.0104442,0.00013972,2]
[332807584,1721538652813,-1045.94,0.00013972,2]
[332807585,1721538652824,-661.36020003,0.00013972,2]
[332807586,1721538652835,-1129.02255697,0.00013972,2]
[332807587,1721538654080,-500.0,0.00013698,2]
[332807588,1721538654089,-500.0,0.00013698,2]
[332807589,1721538654098,-516.03261185,0.00013698,2]
[332807590,1721538654108,-6964.4067988,0.00013972,2]
[332807591,1721538654118,-500.0,0.00013972,2]
[332807592,1721538654127,-500.0,0.00013972,2]
[332807593,1721538654137,-500.0,0.00013972,2]
[332807594,1721538654147,-500.0,0.00013972,2]
[332807595,1721538654157,-513.96833287,0.00013972,2]
[332807596,1721538654168,-558.09,0.00013972,2]
[332807597,1721538654179,-1031.92,0.00013972,2]
[332807598,1721538654191,-500.0,0.00013972,2]
[332807599,1721538654202,-944.78,0.00013972,2]
[332807600,1721538654212,-500.0,0.00013972,2]
[332807601,1721538654223,-500.0,0.00013972,2]
[332807602,1721538654233,-690.88,0.00013972,2]
[332807603,1721538654244,-1060.58593574,0.00013972,2]
[332807622,1721539638135,-171.17288658,9.998e-05,2]
[332807691,1721539832844,-300.0,9.997e-05,2]
[332807693,1721539832854,-218.09499306,9.998e-05,2]
[332807695,1721539832865,-554.49313473,9.998e-05,2]
[332807770,1721539838686,-1074.47454816,9.998e-05,2]
[332807771,1721539838696,-154.76012181,9.998e-05,2]
[332807772,1721539838707,-19440.57551927,9.998e-05,2]
[332807773,1721539838717,-202.3113304,9.998e-05,2]
[332807774,1721539838727,-157.0917989,9.999e-05,2]
[332807775,1721539838738,-600.13398143,9.999e-05,2]
[332807776,1721539838748,-154.74867499,9.999e-05,2]
[332807777,1721539838758,-542.43428844,9.999e-05,2]
[332807778,1721539838768,-392.37099697,9.999e-05,2]
[332807779,1721539838778,-568.26940653,9.999e-05,2]
[332807780,1721539838788,-156.88305483,9.999e-05,2]
[332807781,1721539838798,-154.76012181,9.999e-05,2]
[332807782,1721539838808,-240.51585871,9.999e-05,2]
[332807783,1721539838818,-1023.8274522,9.999e-05,2]
[332807784,1721539838828,-287.42676554,0.0001,2]
[332807785,1721539838838,-420.0,0.00010997,2]
[332807786,1721539838848,-24890.0,0.00011624,2]
[332807788,1721539838858,-187.5,0.0001208,2]
[332807790,1721539838868,-587.0,0.00012096,2]
[332807792,1721539838877,-285.44810989,0.00012119,2]
[332807794,1721539838887,-162.76390061,0.00012119,2]
[332807795,1721539838896,-187.5,0.00012289,2]
[332807797,1721539838906,-187.5,0.00012499,2]
[332807798,1721539838916,-187.5,0.00012709,2]
[332807799,1721539838926,-795.01450014,0.000129,2]
[332807800,1721539838936,-795.01450014,0.00013072,2]
[332807801,1721539838946,-289.8614433,0.00013151,2]
[332807802,1721539838956,-153.0,0.00013151,2]
[332807803,1721539838966,-823.0,0.00013306,2]
[332807804,1721539838975,-293.8031846,0.00013425,2]
[332807806,1721539838985,-156.8994023,0.00013425,2]
[332807808,1721539838995,-208.7278884,0.00013425,2]
[332807810,1721539839004,-153.0,0.00013425,2]
[332807812,1721539839015,-11970.72326832,0.00013598,2]
[332807814,1721539839025,-2000.0,0.00013598,2]
[332807816,1721539839038,-5277.92757467,0.0001366,2]
[332807817,1721539839050,-4024.72572179,0.00013678,2]
[332807818,1721539839062,-76469.788714,0.00013688,2]
[332807819,1721539839072,-500.0,0.00013698,2]
[332807820,1721539839084,-272.58812779,0.00013698,2]
[332807822,1721539839096,-500.0,0.00013698,2]
[332807824,1721539839106,-500.0,0.00013698,2]
[332807825,1721539839117,-500.0,0.00013698,2]
[332807826,1721539839127,-500.0,0.00013698,2]
[332807827,1721539839137,-500.0,0.00013698,2]
[332807828,1721539839147,-500.0,0.00013698,2]
[332807829,1721539839157,-500.0,0.00013698,2]
[332807830,1721539839167,-500.0,0.00013698,2]
[332807831,1721539839176,-377.98145957,0.00013698,2]
[332807832,1721539839187,-500.0,0.00013698,2]